[Event "CCT Chessable Masters Play-In 2025"]
[Site "Online"]
[Date "2025.02.17"]
[Round "2.74"]
[White "Gurevich, Dmitry"]
[Black "Smirnov, Pavel"]
[Result "0-1"]
[ECO "E48"]
[WhiteElo "2347"]
[BlackElo "2476"]
[PlyCount "88"]
[EventDate "2025.02.13"]
[EventType "swiss"]
[EventCountry "NET"]
[TimeControl "600"]
[WhiteClock "0:00:45"]
[BlackClock "0:04:12"]

1. d4 {[%emt 0:00:01]} Nf6 {[%emt 0:00:02]} 2. c4 {[%emt 0:00:01]} e6 {[%emt 0:00:01]} 3. Nc3 {[%emt 0:00:03]} Bb4 {[%emt 0:00:02]} 4. e3 {[%emt 0:00:02]} O-O {[%emt 0:00:01]} 5. Bd3 {[%emt 0:00:02]} d5 {[%emt 0:00:02]} 6. cxd5 {[%emt 0:00:02]} exd5 {[%emt 0:00:02]} 7. Nge2 {[%emt 0:00:01]} Re8 {[%emt 0:00:05]} 8. O-O {[%emt 0:00:06]} Bd6 {[%emt 0:00:04]} 9. h3 {[%emt 0:00:19]} c6 {[%emt 0:00:09]} 10. Rb1 {[%emt 0:00:08]} a5 {[%emt 0:00:05]} 11. a3 {[%emt 0:00:02]} b6 {[%emt 0:00:09]} 12. Qc2 {[%emt 0:00:16]} Ba6 {[%emt 0:00:05]} 13. Bxa6 {[%emt 0:00:14]} Nxa6 {[%emt 0:00:00]} 14. Bd2 {[%emt 0:00:05]} c5 {[%emt 0:00:08]} 15. Nb5 {[%emt 0:00:05]} Bf8 {[%emt 0:00:08]} 16. dxc5 {[%emt 0:01:10]} bxc5 {[%emt 0:00:02]} 17. Rfd1 {[%emt 0:00:05]} Qb6 {[%emt 0:00:03]} 18. a4 {[%emt 0:00:09]} Nb4 {[%emt 0:00:05]} 19. Bxb4 {[%emt 0:00:08]} axb4 {[%emt 0:00:08]} 20. Nf4 {[%emt 0:00:10]} Rad8 {[%emt 0:00:07]} 21. b3 {[%emt 0:00:12]} g6 {[%emt 0:00:06]} 22. Rbc1 {[%emt 0:00:04]} Qb8 {[%emt 0:00:23]} 23. g3 {[%emt 0:00:32]} h5 {[%emt 0:00:09]} 24. h4 {[%emt 0:00:05]} Qe5 {[%emt 0:00:14]} 25. Na7 {[%emt 0:01:09]} Ra8 {[%emt 0:00:17]} 26. Nb5 {[%emt 0:00:21]} Red8 {[%emt 0:00:03]} 27. Nd3 {[%emt 0:00:52]} Qf5 {[%emt 0:00:09]} 28. Nf4 {[%emt 0:00:16]} Qe5 {[%emt 0:00:07]} 29. Nd3 {[%emt 0:00:04]} Qf5 {[%emt 0:00:12]} 30. Nf4 {[%emt 0:00:02]} Qg4 {[%emt 0:00:04]} 31. Qe2 {[%emt 0:00:05]} Qxe2 {[%emt 0:00:12]} 32. Nxe2 {[%emt 0:00:02]} Rac8 {[%emt 0:00:00]} 33. Na7 {[%emt 0:00:17]} Rc7 {[%emt 0:00:08]} 34. Nb5 {[%emt 0:00:02]} Rcd7 {[%emt 0:00:01]} 35. Nf4 {[%emt 0:00:09]} Ne4 {[%emt 0:00:10]} 36. Kg2 {[%emt 0:00:04]} Bg7 {[%emt 0:00:16]} 37. Rd3 {[%emt 0:00:13]} Nc3 {[%emt 0:00:26]} 38. Rc2 {[%emt 0:00:17]} c4 {[%emt 0:00:35]} 39. bxc4 {[%emt 0:00:03]} dxc4 {[%emt 0:00:25]} 40. Rxd7 {[%emt 0:00:05]} Rxd7 {[%emt 0:00:01]} 41. Nxc3 {[%emt 0:00:11]} b3 {[%emt 0:00:08]} 42. Rc1 {[%emt 0:00:10]} Bxc3 {[%emt 0:00:07]} 43. Ne2 {[%emt 0:00:37]} b2 {[%emt 0:00:05]} 44. Rb1 {[%emt 0:00:14]} Bf6 {[%emt 0:00:02]} 0-1

[Event "CCT Chessable Masters Play-In 2025"]
[Site "Online"]
[Date "2025.02.17"]
[Round "2.75"]
[White "Rozum, Ivan"]
[Black "Demidov, Mikhail"]
[Result "1-0"]
[ECO "A42"]
[WhiteElo "2443"]
[BlackElo "2549"]
[PlyCount "167"]
[EventDate "2025.02.13"]
[EventType "swiss"]
[EventCountry "NET"]
[TimeControl "600"]
[WhiteClock "0:00:55"]
[BlackClock "0:01:16"]

1. d4 {[%emt 0:00:16]} g6 {[%emt 0:00:34]} 2. c4 {[%emt 0:00:03]} Bg7 {[%emt 0:00:01]} 3. Nf3 {[%emt 0:00:01]} d6 {[%emt 0:00:01]} 4. g3 {[%emt 0:00:01]} Nd7 {[%emt 0:00:01]} 5. Bg2 {[%emt 0:00:01]} e5 {[%emt 0:00:00]} 6. Nc3 {[%emt 0:00:02]} Ne7 {[%emt 0:00:01]} 7. O-O {[%emt 0:00:01]} O-O {[%emt 0:00:01]} 8. e4 {[%emt 0:00:06]} exd4 {[%emt 0:00:01]} 9. Nxd4 {[%emt 0:00:01]} Nc6 {[%emt 0:00:01]} 10. Nde2 {[%emt 0:00:27]} Nde5 {[%emt 0:00:40]} 11. b3 {[%emt 0:00:03]} Bg4 {[%emt 0:00:02]} 12. h3 {[%emt 0:00:22]} Bf3 {[%emt 0:00:04]} 13. Bxf3 {[%emt 0:00:03]} Nxf3+ {[%emt 0:00:01]} 14. Kg2 {[%emt 0:00:00]} Nfd4 {[%emt 0:00:07]} 15. Rb1 {[%emt 0:00:22]} Nxe2 {[%emt 0:00:02]} 16. Nxe2 {[%emt 0:00:01]} Qe7 {[%emt 0:00:03]} 17. f3 {[%emt 0:00:14]} f5 {[%emt 0:00:07]} 18. exf5 {[%emt 0:00:08]} Rxf5 {[%emt 0:00:01]} 19. Bb2 {[%emt 0:00:08]} Bxb2 {[%emt 0:00:06]} 20. Rxb2 {[%emt 0:00:00]} Re8 {[%emt 0:00:04]} 21. Rf2 {[%emt 0:00:12]} Re5 {[%emt 0:00:02]} 22. Nf4 {[%emt 0:00:06]} Qf7 {[%emt 0:00:35]} 23. Rbe2 {[%emt 0:00:09]} Rxe2 {[%emt 0:00:03]} 24. Rxe2 {[%emt 0:00:00]} Rxe2+ {[%emt 0:00:01]} 25. Qxe2 {[%emt 0:00:00]} Ne5 {[%emt 0:00:10]} 26. Nd5 {[%emt 0:00:14]} c6 {[%emt 0:00:03]} 27. Nc3 {[%emt 0:00:01]} Qf5 {[%emt 0:00:06]} 28. Ne4 {[%emt 0:00:07]} Nf7 {[%emt 0:00:01]} 29. Qd2 {[%emt 0:00:10]} Qe5 {[%emt 0:00:06]} 30. h4 {[%emt 0:00:07]} Kg7 {[%emt 0:00:01]} 31. Kf2 {[%emt 0:00:05]} a6 {[%emt 0:00:17]} 32. Qc3 {[%emt 0:00:16]} Qxc3 {[%emt 0:00:04]} 33. Nxc3 {[%emt 0:00:00]} Ne5 {[%emt 0:00:14]} 34. Ne4 {[%emt 0:00:07]} Nf7 {[%emt 0:00:23]} 35. g4 {[%emt 0:00:01]} Kf8 {[%emt 0:00:06]} 36. f4 {[%emt 0:00:07]} h6 {[%emt 0:00:08]} 37. Ke3 {[%emt 0:00:06]} Ke7 {[%emt 0:00:01]} 38. Ng3 {[%emt 0:00:24]} Ke6 {[%emt 0:00:14]} 39. h5 {[%emt 0:00:07]} gxh5 {[%emt 0:00:08]} 40. Nxh5 {[%emt 0:00:00]} d5 {[%emt 0:00:04]} 41. Ng7+ {[%emt 0:00:14]} Kf6 {[%emt 0:00:04]} 42. Nh5+ {[%emt 0:00:04]} Ke6 {[%emt 0:00:01]} 43. Kd4 {[%emt 0:00:09]} dxc4 {[%emt 0:00:08]} 44. bxc4 {[%emt 0:00:00]} b6 {[%emt 0:00:04]} 45. c5 {[%emt 0:00:09]} b5 {[%emt 0:00:03]} 46. f5+ {[%emt 0:00:01]} Ke7 {[%emt 0:00:04]} 47. Nf4 {[%emt 0:00:18]} Kf6 {[%emt 0:00:03]} 48. Ng6 {[%emt 0:00:16]} a5 {[%emt 0:00:10]} 49. Nf8 {[%emt 0:00:31]} Ke7 {[%emt 0:00:24]} 50. Ng6+ {[%emt 0:00:03]} Kf6 {[%emt 0:00:01]} 51. Nf8 {[%emt 0:00:01]} Kg5 {[%emt 0:00:47]} 52. Nd7 {[%emt 0:00:02]} Kf4 {[%emt 0:00:01]} 53. f6 {[%emt 0:00:16]} b4 {[%emt 0:00:11]} 54. Nb8 {[%emt 0:00:33]} a4 {[%emt 0:00:11]} 55. Nxc6 {[%emt 0:00:02]} b3 {[%emt 0:00:00]} 56. axb3 {[%emt 0:00:01]} axb3 {[%emt 0:00:00]} 57. Kc3 {[%emt 0:00:07]} Kxg4 {[%emt 0:00:01]} 58. Ne5+ {[%emt 0:00:26]} Nxe5 {[%emt 0:00:11]} 59. c6 {[%emt 0:00:01]} Nxc6 {[%emt 0:00:35]} 60. f7 {[%emt 0:00:00]} Nd4 {[%emt 0:00:06]} 61. f8=Q {[%emt 0:00:03]} Nf5 {[%emt 0:00:00]} 62. Qg8+ {[%emt 0:00:03]} Kf4 {[%emt 0:00:02]} 63. Qf7 {[%emt 0:00:01]} Kg5 {[%emt 0:00:02]} 64. Qg8+ {[%emt 0:00:04]} Kf4 {[%emt 0:00:02]} 65. Qxb3 {[%emt 0:00:02]} h5 {[%emt 0:00:01]} 66. Kd3 {[%emt 0:00:02]} h4 {[%emt 0:00:00]} 67. Qb4+ {[%emt 0:00:01]} Kg5 {[%emt 0:00:04]} 68. Ke2 {[%emt 0:00:01]} Nh6 {[%emt 0:00:07]} 69. Kf3 {[%emt 0:00:02]} Nf5 {[%emt 0:00:02]} 70. Qg4+ {[%emt 0:00:01]} Kf6 {[%emt 0:00:01]} 71. Kf4 {[%emt 0:00:01]} Ne7 {[%emt 0:00:03]} 72. Qxh4+ {[%emt 0:00:00]} Ke6 {[%emt 0:00:00]} 73. Qh6+ {[%emt 0:00:04]} Kd5 {[%emt 0:00:07]} 74. Qg5+ {[%emt 0:00:04]} Ke6 {[%emt 0:00:04]} 75. Ke4 {[%emt 0:00:01]} Kd6 {[%emt 0:00:02]} 76. Qf6+ {[%emt 0:00:02]} Kd7 {[%emt 0:00:01]} 77. Ke5 {[%emt 0:00:06]} Nc6+ {[%emt 0:00:01]} 78. Kd5 {[%emt 0:00:01]} Ne7+ {[%emt 0:00:00]} 79. Kc5 {[%emt 0:00:01]} Nc8 {[%emt 0:00:06]} 80. Qg7+ {[%emt 0:00:09]} Ke8 {[%emt 0:00:06]} 81. Qc7 {[%emt 0:00:11]} Ne7 {[%emt 0:00:01]} 82. Kd6 {[%emt 0:00:05]} Ng6 {[%emt 0:00:01]} 83. Qg7 {[%emt 0:00:06]} Nf8 {[%emt 0:00:01]} 84. Qe7# {[%emt 0:00:01]} 1-0

[Event "CCT Chessable Masters Play-In 2025"]
[Site "Online"]
[Date "2025.02.17"]
[Round "2.76"]
[White "Dvirnyy, Danyyil"]
[Black "Cuenca Jimenez, Jose Fernando"]
[Result "0-1"]
[ECO "C77"]
[WhiteElo "2488"]
[BlackElo "2479"]
[PlyCount "70"]
[EventDate "2025.02.13"]
[EventType "swiss"]
[EventCountry "NET"]
[TimeControl "600"]
[WhiteClock "0:00:56"]
[BlackClock "0:01:27"]

1. e4 {[%emt 0:00:01]} e5 {[%emt 0:00:02]} 2. Nf3 {[%emt 0:00:01]} Nc6 {[%emt 0:00:01]} 3. Bb5 {[%emt 0:00:01]} a6 {[%emt 0:00:02]} 4. Ba4 {[%emt 0:00:01]} Nf6 {[%emt 0:00:01]} 5. d3 {[%emt 0:00:01]} b5 {[%emt 0:00:07]} 6. Bb3 {[%emt 0:00:02]} Bc5 {[%emt 0:00:00]} 7. a4 {[%emt 0:00:02]} b4 {[%emt 0:00:20]} 8. h3 {[%emt 0:00:05]} O-O {[%emt 0:00:04]} 9. a5 {[%emt 0:00:05]} Rb8 {[%emt 0:00:33]} 10. O-O {[%emt 0:00:01]} d6 {[%emt 0:00:07]} 11. Nbd2 {[%emt 0:00:13]} Be6 {[%emt 0:00:27]} 12. Nc4 {[%emt 0:00:04]} h6 {[%emt 0:00:21]} 13. c3 {[%emt 0:00:35]} Ba7 {[%emt 0:00:47]} 14. Bd2 {[%emt 0:00:26]} Nd7 {[%emt 0:00:24]} 15. Ba4 {[%emt 0:00:37]} bxc3 {[%emt 0:00:38]} 16. Bxc3 {[%emt 0:00:06]} Nd4 {[%emt 0:00:07]} 17. b4 {[%emt 0:00:58]} Nxf3+ {[%emt 0:00:39]} 18. Qxf3 {[%emt 0:00:03]} c5 {[%emt 0:00:03]} 19. bxc5 {[%emt 0:01:03]} Nxc5 {[%emt 0:00:04]} 20. Bc2 {[%emt 0:00:01]} Bxc4 {[%emt 0:01:01]} 21. dxc4 {[%emt 0:00:00]} Ne6 {[%emt 0:00:00]} 22. Rab1 {[%emt 0:00:14]} Bd4 {[%emt 0:00:07]} 23. Bd2 {[%emt 0:00:03]} Qc7 {[%emt 0:00:02]} 24. Qd3 {[%emt 0:00:18]} Rfc8 {[%emt 0:00:18]} 25. g3 {[%emt 0:00:32]} Qc5 {[%emt 0:00:34]} 26. Kg2 {[%emt 0:00:17]} Rxb1 {[%emt 0:00:09]} 27. Bxb1 {[%emt 0:00:10]} Rb8 {[%emt 0:00:21]} 28. Bc2 {[%emt 0:00:42]} Rb2 {[%emt 0:00:06]} 29. f4 {[%emt 0:00:13]} Qc6 {[%emt 0:00:14]} 30. Rc1 {[%emt 0:00:19]} Nc5 {[%emt 0:00:05]} 31. Qe2 {[%emt 0:00:05]} f5 {[%emt 0:00:20]} 32. fxe5 {[%emt 0:00:01]} dxe5 {[%emt 0:00:02]} 33. Be1 {[%emt 0:01:22]} Nxe4 {[%emt 0:00:16]} 34. Kh2 {[%emt 0:00:09]} Ng5 {[%emt 0:00:08]} 35. h4 {[%emt 0:00:13]} Nf3+ {[%emt 0:00:03]} 0-1

[Event "CCT Chessable Masters Play-In 2025"]
[Site "Online"]
[Date "2025.02.17"]
[Round "2.77"]
[White "Batsuren, Dambasuren"]
[Black "Grandelius, Nils"]
[Result "0-1"]
[ECO "D07"]
[WhiteElo "2537"]
[BlackElo "2644"]
[PlyCount "56"]
[EventDate "2025.02.13"]
[EventType "swiss"]
[EventCountry "NET"]
[TimeControl "600"]
[WhiteClock "0:01:07"]
[BlackClock "0:05:39"]

1. d4 {[%emt 0:00:01]} d5 {[%emt 0:00:01]} 2. c4 {[%emt 0:00:00]} e6 {[%emt 0:00:01]} 3. Nc3 {[%emt 0:00:01]} Nc6 {[%emt 0:00:01]} 4. Nf3 {[%emt 0:00:12]} a6 {[%emt 0:00:01]} 5. cxd5 {[%emt 0:01:07]} exd5 {[%emt 0:00:00]} 6. Bf4 {[%emt 0:00:00]} Nf6 {[%emt 0:00:02]} 7. e3 {[%emt 0:00:01]} Nh5 {[%emt 0:00:01]} 8. Bg5 {[%emt 0:00:22]} Be7 {[%emt 0:00:02]} 9. Bxe7 {[%emt 0:00:04]} Nxe7 {[%emt 0:00:00]} 10. Bd3 {[%emt 0:00:08]} Nf6 {[%emt 0:00:05]} 11. Qc2 {[%emt 0:00:04]} O-O {[%emt 0:00:19]} 12. h3 {[%emt 0:00:09]} g6 {[%emt 0:00:33]} 13. g4 {[%emt 0:00:15]} Be6 {[%emt 0:00:01]} 14. Ne5 {[%emt 0:00:39]} c5 {[%emt 0:00:11]} 15. dxc5 {[%emt 0:01:09]} d4 {[%emt 0:00:17]} 16. Ne4 {[%emt 0:00:50]} Nxe4 {[%emt 0:00:03]} 17. Bxe4 {[%emt 0:00:00]} dxe3 {[%emt 0:00:00]} 18. fxe3 {[%emt 0:00:04]} Qc7 {[%emt 0:00:19]} 19. Nd3 {[%emt 0:00:04]} Bd5 {[%emt 0:00:14]} 20. Nf4 {[%emt 0:00:59]} Bxe4 {[%emt 0:00:22]} 21. Qxe4 {[%emt 0:00:00]} Qxc5 {[%emt 0:00:00]} 22. O-O {[%emt 0:00:02]} Rae8 {[%emt 0:00:04]} 23. Rac1 {[%emt 0:00:11]} Qb5 {[%emt 0:00:35]} 24. Qc2 {[%emt 0:01:33]} Nc6 {[%emt 0:00:19]} 25. e4 {[%emt 0:00:10]} Re5 {[%emt 0:00:18]} 26. Nd5 {[%emt 0:00:04]} Nd4 {[%emt 0:00:16]} 27. Qh2 {[%emt 0:00:01]} Ne2+ {[%emt 0:00:08]} 28. Kg2 {[%emt 0:00:43]} Rxd5 {[%emt 0:00:08]} 0-1

[Event "CCT Chessable Masters Play-In 2025"]
[Site "Online"]
[Date "2025.02.17"]
[Round "2.78"]
[White "Sychev, Klementy"]
[Black "Munkhgal, Gombosuren"]
[Result "0-1"]
[ECO "C45"]
[WhiteElo "2542"]
[BlackElo "2406"]
[PlyCount "82"]
[EventDate "2025.02.13"]
[EventType "swiss"]
[EventCountry "NET"]
[TimeControl "600"]
[WhiteClock "0:00:23"]
[BlackClock "0:03:02"]

1. e4 {[%emt 0:00:01]} e5 {[%emt 0:00:01]} 2. Nf3 {[%emt 0:00:01]} Nc6 {[%emt 0:00:00]} 3. d4 {[%emt 0:00:01]} exd4 {[%emt 0:00:02]} 4. Nxd4 {[%emt 0:00:00]} Qf6 {[%emt 0:00:01]} 5. Ne2 {[%emt 0:00:01]} Bc5 {[%emt 0:00:02]} 6. Nf4 {[%emt 0:00:02]} Ne5 {[%emt 0:00:07]} 7. Nc3 {[%emt 0:00:11]} c6 {[%emt 0:00:02]} 8. Be2 {[%emt 0:00:03]} g5 {[%emt 0:00:01]} 9. Nh3 {[%emt 0:00:25]} h6 {[%emt 0:00:06]} 10. f4 {[%emt 0:00:10]} gxf4 {[%emt 0:00:09]} 11. Nxf4 {[%emt 0:00:21]} Ne7 {[%emt 0:00:08]} 12. Na4 {[%emt 0:00:01]} Bb4+ {[%emt 0:00:17]} 13. c3 {[%emt 0:00:03]} Bd6 {[%emt 0:00:03]} 14. O-O {[%emt 0:00:16]} Bc7 {[%emt 0:00:15]} 15. Nh5 {[%emt 0:00:25]} Qg6 {[%emt 0:00:08]} 16. Kh1 {[%emt 0:02:25]} d6 {[%emt 0:00:13]} 17. Rf6 {[%emt 0:00:07]} Qxe4 {[%emt 0:00:04]} 18. Rxd6 {[%emt 0:00:01]} Qh4 {[%emt 0:00:52]} 19. Bf4 {[%emt 0:01:44]} N7g6 {[%emt 0:00:21]} 20. Bg3 {[%emt 0:00:31]} Qe7 {[%emt 0:00:06]} 21. Rd4 {[%emt 0:00:55]} b5 {[%emt 0:00:07]} 22. Bf3 {[%emt 0:00:47]} bxa4 {[%emt 0:00:09]} 23. Bxc6+ {[%emt 0:00:01]} Nxc6 {[%emt 0:00:04]} 24. Bxc7 {[%emt 0:00:06]} Nxd4 {[%emt 0:00:06]} 25. Qxa4+ {[%emt 0:00:20]} Kf8 {[%emt 0:00:44]} 26. Qxd4 {[%emt 0:00:02]} Qxc7 {[%emt 0:00:00]} 27. Qg7+ {[%emt 0:00:01]} Ke7 {[%emt 0:00:11]} 28. Qf6+ {[%emt 0:00:02]} Kf8 {[%emt 0:00:05]} 29. Qg7+ {[%emt 0:00:01]} Ke7 {[%emt 0:00:29]} 30. Qf6+ {[%emt 0:00:01]} Ke8 {[%emt 0:00:22]} 31. Re1+ {[%emt 0:00:03]} Be6 {[%emt 0:00:01]} 32. Ng7+ {[%emt 0:00:02]} Kd7 {[%emt 0:00:00]} 33. Nxe6 {[%emt 0:00:01]} Qd6 {[%emt 0:00:17]} 34. Qxf7+ {[%emt 0:00:11]} Ne7 {[%emt 0:00:01]} 35. h3 {[%emt 0:00:03]} Rhg8 {[%emt 0:00:12]} 36. b4 {[%emt 0:00:03]} Rae8 {[%emt 0:00:24]} 37. Re4 {[%emt 0:00:06]} Qd1+ {[%emt 0:00:13]} 38. Kh2 {[%emt 0:00:00]} Qd6+ {[%emt 0:00:00]} 39. Kh1 {[%emt 0:00:01]} Kc8 {[%emt 0:00:25]} 40. Ng7 {[%emt 0:00:01]} Ref8 {[%emt 0:00:09]} 41. Qxe7 {[%emt 0:00:01]} Rf1# {[%emt 0:00:01]} 0-1

[Event "CCT Chessable Masters Play-In 2025"]
[Site "Online"]
[Date "2025.02.17"]
[Round "2.79"]
[White "Meshkovs, Nikita"]
[Black "Zhukova, Natalia"]
[Result "1-0"]
[ECO "D03"]
[WhiteElo "2531"]
[BlackElo "2306"]
[PlyCount "79"]
[EventDate "2025.02.13"]
[EventType "swiss"]
[EventCountry "NET"]
[TimeControl "600"]
[WhiteClock "0:02:12"]
[BlackClock "0:01:21"]

1. d4 {[%emt 0:00:01]} d5 {[%emt 0:00:06]} 2. Nf3 {[%emt 0:00:01]} Nf6 {[%emt 0:00:02]} 3. c3 {[%emt 0:00:01]} e6 {[%emt 0:00:10]} 4. Bg5 {[%emt 0:00:04]} Nbd7 {[%emt 0:00:13]} 5. Nbd2 {[%emt 0:00:01]} c5 {[%emt 0:00:01]} 6. e3 {[%emt 0:00:01]} h6 {[%emt 0:00:03]} 7. Bh4 {[%emt 0:00:03]} Bd6 {[%emt 0:00:01]} 8. Bb5 {[%emt 0:00:37]} O-O {[%emt 0:00:09]} 9. O-O {[%emt 0:00:07]} Qb6 {[%emt 0:00:13]} 10. Bxd7 {[%emt 0:00:39]} Nxd7 {[%emt 0:00:08]} 11. c4 {[%emt 0:00:27]} Qxb2 {[%emt 0:00:23]} 12. Qa4 {[%emt 0:00:35]} Nb6 {[%emt 0:00:27]} 13. Qa5 {[%emt 0:00:02]} Nxc4 {[%emt 0:00:02]} 14. Nxc4 {[%emt 0:00:01]} dxc4 {[%emt 0:00:00]} 15. dxc5 {[%emt 0:00:00]} b6 {[%emt 0:00:22]} 16. cxb6 {[%emt 0:00:03]} Qxb6 {[%emt 0:00:02]} 17. Qa4 {[%emt 0:00:01]} Qa6 {[%emt 0:01:10]} 18. Qc2 {[%emt 0:00:08]} Bb7 {[%emt 0:00:03]} 19. Rfd1 {[%emt 0:00:12]} Bxf3 {[%emt 0:01:01]} 20. gxf3 {[%emt 0:00:01]} Rfc8 {[%emt 0:00:08]} 21. Rac1 {[%emt 0:00:08]} Ba3 {[%emt 0:00:22]} 22. Rb1 {[%emt 0:00:01]} c3 {[%emt 0:00:04]} 23. Rd3 {[%emt 0:00:33]} Bb2 {[%emt 0:00:36]} 24. Rbd1 {[%emt 0:00:07]} Qxa2 {[%emt 0:00:10]} 25. Rd7 {[%emt 0:00:03]} Rab8 {[%emt 0:00:13]} 26. Rxf7 {[%emt 0:00:47]} Kxf7 {[%emt 0:00:13]} 27. Rd7+ {[%emt 0:00:01]} Kg8 {[%emt 0:00:01]} 28. Bf6 {[%emt 0:00:02]} e5 {[%emt 0:01:17]} 29. Rxg7+ {[%emt 0:00:03]} Kf8 {[%emt 0:00:01]} 30. Qh7 {[%emt 0:00:39]} Qb1+ {[%emt 0:00:10]} 31. Qxb1 {[%emt 0:00:02]} c2 {[%emt 0:00:01]} 32. Qa2 {[%emt 0:00:02]} c1=Q+ {[%emt 0:00:06]} 33. Kg2 {[%emt 0:00:01]} Qc4 {[%emt 0:00:04]} 34. Qxa7 {[%emt 0:00:08]} Qe6 {[%emt 0:00:10]} 35. Rg6 {[%emt 0:01:04]} Qf7 {[%emt 0:00:02]} 36. Bg7+ {[%emt 0:00:47]} Kg8 {[%emt 0:00:01]} 37. Qa6 {[%emt 0:00:03]} Kh7 {[%emt 0:00:06]} 38. Rg3 {[%emt 0:00:08]} e4 {[%emt 0:00:11]} 39. Qxh6+ {[%emt 0:00:02]} Kg8 {[%emt 0:00:07]} 40. Qh8# {[%emt 0:00:02]} 1-0

[Event "CCT Chessable Masters Play-In 2025"]
[Site "Online"]
[Date "2025.02.17"]
[Round "2.80"]
[White "Yang, Kaiqi"]
[Black "Mendonca, Leon Luke"]
[Result "0-1"]
[ECO "A30"]
[WhiteElo "2481"]
[BlackElo "2641"]
[PlyCount "66"]
[EventDate "2025.02.13"]
[EventType "swiss"]
[EventCountry "NET"]
[TimeControl "600"]
[BlackClock "0:03:07"]

1. c4 {[%emt 0:00:01]} b6 {[%emt 0:00:08]} 2. Nf3 {[%emt 0:00:04]} Bb7 {[%emt 0:00:01]} 3. g3 {[%emt 0:00:01]} c5 {[%emt 0:00:02]} 4. Bg2 {[%emt 0:00:01]} g6 {[%emt 0:00:00]} 5. O-O {[%emt 0:00:11]} Bg7 {[%emt 0:00:01]} 6. Nc3 {[%emt 0:00:00]} Nf6 {[%emt 0:00:01]} 7. Re1 {[%emt 0:00:01]} Ne4 {[%emt 0:00:08]} 8. Qc2 {[%emt 0:00:21]} Nxc3 {[%emt 0:00:03]} 9. bxc3 {[%emt 0:00:04]} O-O {[%emt 0:00:02]} 10. e4 {[%emt 0:00:04]} Nc6 {[%emt 0:00:01]} 11. d3 {[%emt 0:00:03]} d6 {[%emt 0:00:02]} 12. Nh4 {[%emt 0:00:12]} e6 {[%emt 0:00:05]} 13. f4 {[%emt 0:00:14]} Qd7 {[%emt 0:00:25]} 14. Bd2 {[%emt 0:01:16]} Rae8 {[%emt 0:00:21]} 15. Re2 {[%emt 0:00:04]} f5 {[%emt 0:00:36]} 16. Rae1 {[%emt 0:00:18]} Nd8 {[%emt 0:00:03]} 17. exf5 {[%emt 0:01:19]} gxf5 {[%emt 0:00:10]} 18. Bxb7 {[%emt 0:00:37]} Nxb7 {[%emt 0:00:00]} 19. Nf3 {[%emt 0:00:58]} Bf6 {[%emt 0:00:02]} 20. d4 {[%emt 0:00:14]} d5 {[%emt 0:00:56]} 21. Ne5 {[%emt 0:00:26]} Bxe5 {[%emt 0:00:48]} 22. Rxe5 {[%emt 0:00:32]} dxc4 {[%emt 0:00:01]} 23. Be3 {[%emt 0:00:00]} Nd8 {[%emt 0:00:35]} 24. dxc5 {[%emt 0:00:32]} Nc6 {[%emt 0:00:10]} 25. Bd4 {[%emt 0:00:24]} Nxe5 {[%emt 0:00:08]} 26. Rxe5 {[%emt 0:00:03]} bxc5 {[%emt 0:00:43]} 27. Rxc5 {[%emt 0:00:04]} Rb8 {[%emt 0:00:01]} 28. Qe2 {[%emt 0:00:32]} Rb1+ {[%emt 0:01:11]} 29. Kg2 {[%emt 0:00:17]} Qb7+ {[%emt 0:00:03]} 30. Kh3 {[%emt 0:00:03]} Qf7 {[%emt 0:00:01]} 31. Qe5 {[%emt 0:01:04]} Qh5+ {[%emt 0:00:02]} 32. Kg2 {[%emt 0:00:00]} Rb2+ {[%emt 0:00:02]} 33. Kg1 Qd1+ {[%emt 0:00:01]} 0-1

[Event "CCT Chessable Masters Play-In 2025"]
[Site "Online"]
[Date "2025.02.17"]
[Round "2.81"]
[White "Onyshchuk, Volodymyr"]
[Black "Mikhalevski, Victor"]
[Result "0-1"]
[ECO "C78"]
[WhiteElo "2610"]
[BlackElo "2506"]
[PlyCount "110"]
[EventDate "2025.02.13"]
[EventType "swiss"]
[EventCountry "NET"]
[TimeControl "600"]
[BlackClock "0:01:33"]

1. e4 {[%emt 0:00:02]} e5 {[%emt 0:00:14]} 2. Nf3 {[%emt 0:00:02]} Nc6 {[%emt 0:00:01]} 3. Bb5 {[%emt 0:00:01]} a6 {[%emt 0:00:02]} 4. Ba4 {[%emt 0:00:02]} Nf6 {[%emt 0:00:01]} 5. d3 {[%emt 0:00:03]} b5 {[%emt 0:00:04]} 6. Bb3 {[%emt 0:00:00]} Bc5 {[%emt 0:00:00]} 7. O-O {[%emt 0:00:13]} d6 {[%emt 0:00:05]} 8. c3 {[%emt 0:00:02]} O-O {[%emt 0:00:08]} 9. Nbd2 {[%emt 0:00:02]} Bb6 {[%emt 0:00:12]} 10. h3 {[%emt 0:00:03]} Ne7 {[%emt 0:00:02]} 11. Re1 {[%emt 0:00:02]} Ng6 {[%emt 0:00:02]} 12. Nf1 {[%emt 0:00:00]} Re8 {[%emt 0:00:04]} 13. Ng3 {[%emt 0:00:16]} h6 {[%emt 0:00:01]} 14. d4 {[%emt 0:00:10]} c5 {[%emt 0:00:09]} 15. d5 {[%emt 0:00:21]} c4 {[%emt 0:00:04]} 16. Bc2 {[%emt 0:00:01]} a5 {[%emt 0:00:17]} 17. Nh2 {[%emt 0:00:14]} Bc5 {[%emt 0:00:08]} 18. Nhf1 {[%emt 0:00:03]} a4 {[%emt 0:00:08]} 19. a3 {[%emt 0:00:03]} Qb6 {[%emt 0:00:06]} 20. Ne3 {[%emt 0:00:06]} Nf4 {[%emt 0:00:04]} 21. Rf1 {[%emt 0:00:05]} g6 {[%emt 0:00:06]} 22. Qf3 {[%emt 0:00:11]} Nh7 {[%emt 0:00:07]} 23. Ng4 {[%emt 0:00:13]} Ng5 {[%emt 0:00:12]} 24. Nf6+ {[%emt 0:00:24]} Kh8 {[%emt 0:00:27]} 25. Qd1 {[%emt 0:00:03]} Bxf2+ {[%emt 0:00:02]} 26. Kh2 {[%emt 0:00:36]} Rf8 {[%emt 0:00:13]} 27. Nh1 {[%emt 0:00:03]} Be3 {[%emt 0:00:17]} 28. h4 {[%emt 0:01:02]} Nh7 {[%emt 0:00:06]} 29. Nxh7 {[%emt 0:00:20]} Kxh7 {[%emt 0:00:02]} 30. g3 {[%emt 0:00:10]} Nh5 {[%emt 0:00:14]} 31. Qf3 {[%emt 0:00:05]} Bxc1 {[%emt 0:00:05]} 32. Raxc1 {[%emt 0:00:01]} f5 {[%emt 0:00:20]} 33. g4 {[%emt 0:00:38]} Nf4 {[%emt 0:00:12]} 34. exf5 {[%emt 0:00:01]} gxf5 {[%emt 0:00:03]} 35. Ng3 {[%emt 0:00:01]} Qd8 {[%emt 0:00:07]} 36. g5 {[%emt 0:01:45]} hxg5 {[%emt 0:00:05]} 37. Qg4 {[%emt 0:00:01]} e4 {[%emt 0:00:36]} 38. Qxg5 {[%emt 0:00:04]} Qxg5 {[%emt 0:00:02]} 39. hxg5 {[%emt 0:00:01]} Nd3 {[%emt 0:00:04]} 40. Bxd3 {[%emt 0:00:11]} exd3 {[%emt 0:00:13]} 41. Nh5 {[%emt 0:00:24]} Kg6 {[%emt 0:00:19]} 42. Nf4+ {[%emt 0:00:02]} Kxg5 {[%emt 0:00:02]} 43. Rce1 {[%emt 0:00:05]} Ra7 {[%emt 0:00:06]} 44. Kg3 {[%emt 0:00:05]} Rh7 {[%emt 0:00:16]} 45. Rg1 {[%emt 0:00:05]} Kf6 {[%emt 0:00:27]} 46. Kf3 {[%emt 0:00:01]} Rh6 {[%emt 0:00:05]} 47. Rg2 {[%emt 0:00:07]} Rfh8 {[%emt 0:00:11]} 48. Reg1 {[%emt 0:00:04]} Rh1 {[%emt 0:00:24]} 49. Rg6+ {[%emt 0:00:28]} Ke5 {[%emt 0:00:12]} 50. Ke3 {[%emt 0:00:01]} Rxg1 {[%emt 0:00:24]} 51. Rxg1 {[%emt 0:00:02]} Rh2 {[%emt 0:00:01]} 52. Rg8 {[%emt 0:00:02]} Bd7 {[%emt 0:00:11]} 53. Rg7 {[%emt 0:00:02]} Bc8 {[%emt 0:00:13]} 54. Rg8 {[%emt 0:00:02]} Bb7 {[%emt 0:00:03]} 55. Rf8 d2 {[%emt 0:00:08]} 0-1